Cogmind - Beta 15 @@@ ROGUE MODE // 2025.09.04 @ 19:19:11 Player: winnking222 Result: Destroyed by L9-JHT(R) with Subdweller Machine Gun Performance ------------- Evolutions (0) 0 Regions Visited (2) 400 Robots Destroyed (19) 95 Value Destroyed (404) 404 Prototype IDs (0) 0 Alien Tech Used (0) 0 Bonus (0) 0 TOTAL SCORE: 899 Bonus ------- None Cogmind --------- Core Integrity 0/250 Matter 236/300 Energy 48/100 System Corruption 0% Temperature Cool (0) Movement Rolling (95) Location -10/Subcaves Parts ------- > --- POWER (1) -------- (None) > --- PROPULSION (2) --- Wheel Subdweller Monowheel > --- UTILITY (2) ------ Large Storage Unit Structural Scanner > --- WEAPON (2) ------- Particle Gun Particle Gun > --- INVENTORY (15) --- Improved Ion Engine Subdweller Monowheel Subdweller Monowheel Disposable Heat Sink Humpback Medium Matter Pod (0) Subdweller Optics Seismic Detector Rainbow Chip Particle Gun Subdweller Machine Gun Light Cannon Peak State ------------ > --- POWER ------------ (None) > --- PROPULSION ------- Wheel Subdweller Monowheel > --- UTILITY ---------- Large Storage Unit Structural Scanner > --- WEAPON ----------- Particle Gun Particle Gun > --- INVENTORY -------- Improved Ion Engine Subdweller Monowheel Disposable Heat Sink Humpback Medium Matter Pod Subdweller Optics Seismic Detector Rainbow Chip Particle Gun Subdweller Machine Gun Light Cannon [Rating: 12] Favorites ----------- Power Improved Ion Engine Engine Improved Ion Engine Propulsion Aluminum Leg Treads Light Treads Leg Aluminum Leg Wheel Wheel Utility Seismic Detector Device Seismic Detector Storage Large Storage Unit Weapon Light Cannon Energy Gun Particle Gun Ballistic Gun Light Assault Rifle Ballistic Cannon Light Cannon Build | -11 -10 -10 ------- Run | Yrd Mat Sub Slots Evolved . | . . . Power . | . . . Propulsion . | . . . Utility . | . . . Weapon . | . . . Parts Attached 18 | 7 4 7 Power 2 | 1 1 . Engine 2 | 1 1 . Core . | . . . Reactor . | . . . Propulsion 6 | 2 . 4 Treads 2 | . . 2 Leg 2 | 2 . . Wheel 2 | . . 2 Hover . | . . . Flight . | . . . Utility 4 | 2 1 1 Device 2 | 1 . 1 Storage 2 | 1 1 . Processor . | . . . Hackware . | . . . Protection . | . . . Artifact . | . . . Weapon 6 | 2 2 2 Energy Gun 2 | . . 2 Energy Cannon . | . . . Ballistic Gun 2 | 2 . . Ballistic Cannon 2 | . 2 . Launcher . | . . . Special Weapon . | . . . Impact Weapon . | . . . Slashing Weapon . | . . . Piercing Weapon . | . . . Special Melee Weapon . | . . . Unidentified Prototypes . | . . . Parts Lost 7 | . . 7 Power 1 | . . 1 Propulsion 4 | . . 4 Utility 1 | . . 1 Weapon 1 | . . 1 Highest Loss Streak 7 | . . 7 To Critical Strikes . | . . . Average Backups 8 | 5 8 9 Power . | . 1 1 Propulsion 2 | 2 3 2 Utility 1 | . 1 2 Weapon 2 | 1 2 2 Tool/Special . | . . . Unused Backups 14 | . 3 11 Power 3 | . 2 1 Propulsion 2 | . . 2 Utility 6 | . . 6 Weapon 3 | . 1 2 Tool/Special . | . . . Average Slot Usage (%) 97 | . 100 92 Engine 12 | . 14 10 Leg 25 | . 28 17 Wheel 1 | . . 6 Device 13 | . 14 12 Storage 14 | . 14 14 Energy Gun 2 | . . 7 Ballistic Gun 2 | . 4 . Ballistic Cannon 22 | . 23 20 Peak Build Rating 12 | 7 9 12 Average Rating 8 | 5 8 9 On Entrance 5 | . 7 9 Naked Turns . | . . . Heaviest Build 34 | 11 34 34 Greatest Support 30 | 20 20 30 Greatest Overweight (x) 2 | . 1 2 Average Overweight (x) . | . . . Largest Inventory Capacity 15 | 8 15 15 Average Capacity 13 | 7 13 15 Most Carried 13 | 8 9 13 Average Carried 8 | 5 8 9 Final Capacity 15 | 8 15 15 Final Carried 13 | 6 9 13 Class Distribution -------------------- 100% | Mutant Dominant Class ---------------- Mutant | -10/Materials Mutant | -10/Subcaves Resources | -11 -10 -10 ----------- Run | Yrd Mat Sub Matter Collected 678 | 297 271 110 Remotely . | . . . Salvage Created 555 | 163 321 71 Parts 39 | 12 20 7 Haulers Intercepted 1 | . 1 . Recyclers Shooed . | . . . Parts Field Recycled . | . . . Retrieved Matter . | . . . Parts Self-Destructed . | . . . Prevented . | . . . Kills | -11 -10 -10 ------- Run | Yrd Mat Sub Combat Hostiles Destroyed 11 | . 8 3 Guns 1 | . . 1 Cannons 10 | . 8 2 Classes Destroyed 7 | 2 4 1 Tunneler 4 | 4 . . Hauler 1 | . 1 . Recycler 2 | 1 1 . Watcher 1 | . 1 . Swarmer 3 | . 3 . Grunt 5 | . 5 . Subdweller 3 | . . 3 Best Kill Streak 4 | 2 4 3 Combat Bots Only 3 | . 3 3 Max Kills in Single Turn 1 | 1 1 1 Gunslinging . | . . . Exploded . | . . . Melee . | . . . Uniques/NPCs Destroyed . | . . . Combat | -11 -10 -10 -------- Run | Yrd Mat Sub Hostile Shots Fired 87 | . 32 55 Missed 22 | . 12 10 Hits 65 | . 20 45 Projectile 65 | . 20 45 Critical Strikes 2 | . 1 1 Damage Taken 1143 | . 204 939 Core 263 | . . 263 Absorbed by Shields . | . . . Core Remaining (%) 100 | 100 . . Volleys Fired 76 | 15 38 23 Largest 2 | 2 2 2 Hottest 130 | 40 60 130 Shots Fired 152 | 30 76 46 Gun 61 | 30 10 21 Cannon 91 | . 66 25 Launcher . | . . . Special . | . . . Kinetic 131 | 30 76 25 Thermal 21 | . . 21 Explosive . | . . . Electromagnetic . | . . . Robot Hit Streak 10 | 5 7 10 Robot Miss Streak 4 | 2 4 1 Penetration Max . | . . . Secondary Targets . | . . . Shots Hit Robots 91 | 19 37 35 Core Hits 33 | 11 15 7 Critical Kills . | . . . Critical Parts Destroyed . | . . . Critical Strikes 5 | . 4 1 Burn 1 | . . 1 Blast 4 | . 4 . Melee Attacks . | . . . Impact . | . . . Slashing . | . . . Piercing . | . . . Sneak Attacks . | . . . Combat Hostiles . | . . . Follow-up Attacks . | . . . Damage Inflicted 1364 | 154 631 579 Guns 458 | 154 47 257 Cannons 899 | . 577 322 Explosions . | . . . Melee . | . . . Ramming 7 | . 7 . Kinetic 1100 | 154 624 322 Thermal 257 | . . 257 Explosive . | . . . Electromagnetic . | . . . Impact . | . . . Slashing . | . . . Piercing . | . . . Highest Corruption . | . . . Average Corruption . | . . . Corruption Purged . | . . . Corruption Blocked . | . . . Overload Shots . | . . . Overflow Damage . | . . . Projectiles . | . . . Explosions . | . . . Melee . | . . . Knockbacks 12 | . 5 7 Impact . | . . . Kinetic 12 | . 5 7 Secondary . | . . . Self-Inflicted Damage . | . . . Shots . | . . . Rammed . | . . . Targets Rammed 2 | 1 1 . Kicked 2 | 1 1 . Crushed . | . . . Highest Temperature 57 | . 57 . Average Temperature 18 | . 18 . Received Heat Transfer 186 | . 84 102 Siege Activations . | . . . Martial Activations . | . . . Shielding Activations . | . . . Robots Disrupted . | . . . Combat Hostiles . | . . . Robots Corrupted . | . . . Combat Hostiles . | . . . Parts Fried . | . . . Impact Corruptions . | . . . Robots Melted . | . . . Combat Hostiles . | . . . Parts Melted . | . . . Heat Transferred 666 | . . 666 Parts Sabotaged . | . . . Parts Stolen . | . . . Parts Stripped . | . . . Power Chain Reactions . | . . . Alert | -11 -10 -10 ------- Run | Yrd Mat Sub Maximum Alert Level . | . . . Low Security (%) 100 | 100 100 . Level 1 . | . . . Level 2 . | . . . Level 3 . | . . . Level 4 . | . . . Level 5 . | . . . High Security . | . . . Max Security . | . . . Peak Influence 132 | 5 132 . Initial . | . . . Average 34 | 1 40 . Influence Increases 287 | 25 262 . Destroy 0b10 Robot/C 160 | . 160 . Destroy 0b10 Robot/NC 40 | 25 15 . Destroy Leader 34 | . 34 . Successful Hack 36 | . 36 . Destroy Structure 2 | . 2 . Lose Combat Pursuer 15 | . 15 . Influence Decreases 287 | 25 262 . Time Decay 287 | 25 262 . Squads Dispatched 1 | . 1 . Investigation 1 | . 1 . Extermination . | . . . Reinforcement . | . . . Assault . | . . . Garrison . | . . . Intercept . | . . . Searches Triggered . | . . . Construction Impeded . | . . . Haulers Reinforced . | . . . Active Scanning Responses . | . . . Cargo Convoy Interrupts . | . . . Stealth | -11 -10 -10 --------- Run | Yrd Mat Sub Distress Signals 2 | . 2 . Communications Jammed . | . . . Distress Signals . | . . . Times Spotted 16 | . 12 4 Peak Tracking Total 4 | . 4 3 Tactical Retreats 1 | . 1 . Traps | -11 -10 -10 ------- Run | Yrd Mat Sub Traps Triggered 1 | . 1 . Indirectly . | . . . Trap Hack Attempts . | . . . Triggered . | . . . Disarmed . | . . . Reprogrammed . | . . . Reused . | . . . Traps Extracted . | . . . Installed . | . . . Triggered . | . . . Machines | -11 -10 -10 ---------- Run | Yrd Mat Sub Machines Disabled . | . . . Max in Single Turn . | . . . Machines Repaired . | . . . Machines Dismantled . | . . . Machines Sabotaged . | . . . Overloaded Fab Kills . | . . . Hacking | -11 -10 -10 --------- Run | Yrd Mat Sub Machines Accessed 4 | . 4 . Terminals 4 | . 4 . Fabricators . | . . . Repair Stations . | . . . Recycling Units . | . . . Scanalyzers . | . . . Garrison Access . | . . . Total Hacks 10 | . 10 . Successful 5 | . 5 . Failed 5 | . 5 . Catastrophic . | . . . Database Lockouts . | . . . Manual 9 | . 9 . Terminals 10 | . 10 . Fabricators . | . . . Repair Stations . | . . . Recycling Units . | . . . Scanalyzers . | . . . Garrison Access . | . . . Terminal Hacks . | . . . Fabricator Hacks . | . . . Repair Station Hacks . | . . . Recycling Unit Hacks . | . . . Scanalyzer . | . . . Garrison Access Hacks . | . . . Unauthorized Hacks 5 | . 5 . Terminals 5 | . 5 . Botnet 3 | . 3 . Skim 2 | . 2 . Fabricators . | . . . Repair Stations . | . . . Recycling Units . | . . . Scanalyzers . | . . . Garrison Access . | . . . Data Cores Recovered . | . . . Used . | . . . Hacking Detections 4 | . 4 . Full Trace Events 1 | . 1 . Feedback Events . | . . . Feedback Blocked . | . . . Robot Schematics Acquired . | . . . Robots Built . | . . . Authchips . | . . . Time . | . . . Total Robot Build Rating . | . . . Part Schematics Acquired . | . . . Parts Built . | . . . Authchips . | . . . Time . | . . . Total Part Build Rating . | . . . Parts Repaired . | . . . Time . | . . . Parts Recycled . | . . . Recycled Matter . | . . . Retrieved Matter . | . . . Retrieved Components . | . . . Parts Scanalyzed . | . . . Part Schematics Acquired . | . . . Parts Damaged . | . . . Bothacking | -11 -10 -10 ------------ Run | Yrd Mat Sub Used RIF Installer . | . . . Robots Hacked . | . . . Non-combat . | . . . Combat . | . . . Robot Hacks Applied . | . . . Relay Couplers Released . | . . . Fabnet Peak Effective % . | . . . Robots Rewired . | . . . Allies Hacked . | . . . Hacks Repelled . | . . . Allies | -11 -10 -10 -------- Run | Yrd Mat Sub Total Allies . | . . . Largest Group . | . . . Highest-Rated Group . | . . . Highest-Rated Ally . | . . . Total Orders . | . . . Ally Attacks . | . . . Total Damage . | . . . Kills . | . . . Allies Corrupted . | . . . Allies Melted . | . . . Intel | -11 -10 -10 ------- Run | Yrd Mat Sub Active Infowar (turns) 1261 | 16 914 331 Structural 82 | . . 82 Seismic 1179 | 16 914 249 Robot Analysis Total . | . . . Derelict Logs Recovered 3 | . . 3 Drone Launches . | . . . Drone Recoveries . | . . . Exploration | -11 -10 -10 ------------- Run | Yrd Mat Sub Turns Passed 1468 | 170 914 384 Spaces Moved 582 | 96 298 188 Core 10 | 10 . . Treads . | . . . Legs 505 | 86 298 121 Wheels 67 | . . 67 Hover . | . . . Flight . | . . . Fastest Speed 50 | 50 120 95 Average Speed 152 | 112 163 156 Slowest Speed 190 | 120 190 190 Overloaded Moves . | . . . Propulsion Burnouts . | . . . Robots Hopped . | . . . Potential Cave-ins . | . . . Cave-ins Triggered . | . . . Exploration Rate (%) 25 | 5 59 13 Regions Visited 2 Branch Regions 1 Pre-discovered Areas 1 | . . 1 Known Exits Taken . | . . . Unknown Exits Taken 2 | 1 1 . Scrap Searched . | . . . Spaces Dug . | . . . Terrain Destroyed . | . . . Melee . | . . . Projectile . | . . . AOE . | . . . Terrain Rammed . | . . . Walls Destroyed . | . . . Machines Disabled . | . . . Actions | -11 -10 -10 --------- Run | Yrd Mat Sub Total 1015 | 132 652 231 Wait 306 | 4 298 4 Move 580 | 95 297 188 Hop . | . . . Pick Up 26 | 10 7 9 Fast Attach 5 | 3 2 . Attach 10 | 4 . 6 Detach . | . . . Swap 3 | . 2 1 Drop 7 | . 7 . Fire 76 | 15 38 23 Melee . | . . . Ram . | . . . Kick 2 | 1 1 . Crush . | . . . Escape Stasis . | . . . Rewire . | . . . Trap . | . . . Miscellaneous . | . . . Route ------- -11/Scrapyard -10/Materials (discovered 3 exits: [*Mat x2] / [*Sub]) -10/Subcaves History --------- Turn | Location | Event 10 | -11/Scrapyard | Discovered new exit (range 16) 171 | -11/Scrapyard | Entered Materials 329 | -10/Materials | Build established: Mutant 613 | -10/Materials | Discovered new exit (range 7) 773 | -10/Materials | Discovered new exit (range 12) 1073 | -10/Materials | Discovered new exit (range 7) 1085 | -10/Materials | Entered Subcaves 1085 | -10/Subcaves | Learned 2 Materials zone layouts 1165 | -10/Subcaves | Learned location of Mines (-10) 1258 | -10/Subcaves | Learned Materials emergency access door positions 1315 | -10/Subcaves | A Subdweller sparked back to life 1315 | -10/Subcaves | A Subdweller sparked back to life 1315 | -10/Subcaves | A Subdweller sparked back to life 1339 | -10/Subcaves | Core integrity fell below 50% 1390 | -10/Subcaves | Found Prototype Processor 1397 | -10/Subcaves | Lost 7 parts (1p4n1u1w) 1466 | -10/Subcaves | Core integrity fell below 20% 1469 | -10/Subcaves | Destroyed by L9-JHT(R) with Subdweller Machine Gun Last Messages --------------- 01373_ Subatomizers dissect the Sub. Monowheel. 01375_ Acquired 3 matter. 01378_ Acquired Sub. Machine Gun. 01381_ Acquired Sub. Monowheel. 01386_ Subatomizers dissect the Sub. Monowheel. 01386_ Acquired Structural Scanner. 01388_ Acquired 1 matter. 01390_ Acquired Prototype Processor. 01392_ Acquired Humpback. 01394_ Acquired Disposable Heat Sink. 01395_ Acquired 19 matter. 01397_ Acquired Sub. Optics. 01398_ Acquired 18 matter. 01400_ Acquired 9 matter. 01402_ Acquired 33 matter. 01404_ Acquired 1 matter. 01405_ Acquired 3 matter. 01406_ Acquired 1 matter. 01407_ Acquired 22 matter. 01409_ Acquired Sub. Monowheel. Map ----- +----------------------------------------------------+ | ?????????????????????????????????????????????????? | | ?????????????????????????????????????????????????? | | #????????????????????????????????????????????????? | | #????????????????????????????????????????????????? | | ##?####??????????????????????????????????????????? | | #?# #??????????????????????????????????????????? | | ### #??????????????????????????????????????????? | | # #####??????????????????????????????????????? | | ### ##?????????????????????????????????????? | | ???# #?????????????????????????????????????? | | #??# #?????????????????????????????????????? | | #### #?????????????????????????????????????? | | ##?????????????????????????????????????? | | ###????????????????????????????????????? | | ## #????????????????????????????????????? | | ## ##????????????????????????????????????? | | #### ###??????????????????????????"##????????? | | ?# #?????????????????????????## "##????????? | | ?# #?????????????????????????## ##????????? | | ?# ##???????????????#########"" ##????????? | | ## #???????????????#########" ????????## ?? | | # ### #????##########" "# ??????#### ?? | | ##?## #????##########"?? ##"??????## ##?? | | #?############ # # ##" "## "## "#### ###? | | ############## ######" ####### #### | | ###"& < @### " ### ## | | #" " < #### R ## | | ## " ####### ##### | | # ######### ### ? | | " ###???###### #### ?? | | ##????##### ############?? | | # # ##???????## #########????? | | ### ### ###???????## ##??????????? | | ############# ####???????#### #######??????????? | | ?#################????????#############??????????? | | ???????????######???????????######???????????????? | | ?????????????????????????????????????????????????? | | ?????????????????????????????????????????????????? | | ?????????????????????????????????????????????????? | | ?????????????????????????????????????????????????? | | ?????????????????????????????????????????????????? | | ?????????????????????????????????????????????????? | | ?????????????????????????????????????????????????? | | ?????????????????????????????????????????????????? | | ?????????????????????????????????????????????????? | | ?????????????????????????????????????????????????? | | ?????????????????????????????????????????????????? | | ?????????????????????????????????????????????????? | | ?????????????????????????????????????????????????? | | | +----------------------------------------------------+ Best States ------------- Heat Dissipation 25 Energy Generation 12 Energy Capacity 265 Matter Stores 300 Matter Capacity 300 Sight Range 16 Terrain Scan Density 10 Evasion (%) 55 Recoil Reduction 2 Item Schematics ----------------- None Robot Schematics ------------------ None Fabricated ------------ Nothing Repaired ---------- Nothing Alien Tech Used ----------------- None Achievements -------------- None Challenges ------------ None Game ------ Seed VortexShiftCannon Manual? 0 Play Time 00:09:06 Cumulative 167.8 hours Start 2025.09.04 @ 19:08:58 End 2025.09.04 @ 19:19:11 Sessions 1 Manual Loads 0 Difficulty Rogue Special Mode None Game No. 230 Rogue 230 Adventurer 0 Explorer 0 Win Type - Total 1 Types 1/0/0/0/0/0/0/0/0/0 Lore% 72 Gallery% 68 Achievement% 59 Wizard Run 0 Options --------- Layout 0 ASCII 0 Keyboard 0 Movement Mouse Keybinds 0 Fullscreen 1 Font 16/SmallcapsGlow Map View 75x55 Zoom Use 0% Tactical HUD 1 Map Filters NONE Filters NONE Steam 1 RUN: 88307a09-2f13-4c57-93e7-fdeef3bd1380